fUSD/lending_fUSD_20240517
["ID","MTS","AMOUNT","RATE_DAILY","PERIOD"]
[327248316,1715922650842,-482.32729354,0.00012998,2]
[327248317,1715922650852,-500.0,0.00012998,2]
[327248320,1715922650861,-500.0,0.00012998,2]
[327248321,1715922650872,-500.0,0.00012998,2]
[327248323,1715922650881,-519.39667604,0.00012998,2]
[327248326,1715922650890,-151.0,0.00012998,2]
[327248328,1715922650900,-500.0,0.00012998,2]
[327248329,1715922650909,-179.131491,0.00012998,2]
[327248332,1715922650918,-187.7715773,0.00012998,2]
[327248333,1715922650927,-231.049231,0.00012998,2]
[327248350,1715922651077,-269.01620652,0.00012998,2]
[327248353,1715922651086,-223.47798927,0.00012998,2]
[327248355,1715922651096,-422.82231576,0.00012998,2]
[327248357,1715922651106,-500.0,0.00012998,2]
[327248359,1715922651115,-500.0,0.00012998,2]
[327248361,1715922651125,-500.0,0.00012998,2]
[327248363,1715922651134,-500.0,0.00012998,2]
[327248365,1715922651143,-500.0,0.00012998,2]
[327248367,1715922651153,-500.0,0.00012998,2]
[327248369,1715922651162,-206.09970777,0.00012998,2]
[327248371,1715922651174,-1090.299647,0.00012998,2]
[327248373,1715922651184,-1090.299647,0.00012998,2]
[327248375,1715922651193,-744.64,0.00012998,2]
[327248377,1715922651202,-3212.46,0.00012998,2]
[327248379,1715922651212,-500.0,0.00012998,2]
[327248381,1715922651222,-2315.29,0.00012998,2]
[327248383,1715922651232,-500.0,0.00012998,2]
[327248385,1715922651243,-500.0,0.00012998,2]
[327248387,1715922651253,-1463.23,0.00012998,2]
[327248389,1715922651262,-500.0,0.00012998,2]
[327248391,1715922651271,-500.0,0.00012998,2]
[327248393,1715922651281,-512.45554902,0.00012998,2]
[327248395,1715922651291,-500.0,0.00012998,2]
[327248397,1715922651300,-561.56635835,0.00012998,2]
[327248399,1715922651310,-500.0,0.00012998,2]
[327248401,1715922651319,-500.0,0.00012998,2]
[327248403,1715922651328,-573.23106981,0.00012998,2]
[327248405,1715922651338,-151.0,0.00012998,2]
[327248407,1715922651347,-500.0,0.00012999,2]
[327248409,1715922651356,-151.0,0.00012999,2]
[327248411,1715922651366,-231.4363051,0.00012999,2]
[327248413,1715922651376,-151.0,0.00012999,2]
[327248415,1715922651386,-151.0,0.00012999,2]
[327248417,1715922651394,-151.0,0.00012999,2]
[327248419,1715922651404,-208.37986674,0.00012999,2]
[327248421,1715922651413,-219.13317711,0.00012999,2]
[327248423,1715922651422,-151.0,0.00012999,2]
[327248425,1715922651432,-162.527147,0.00012999,2]
[327248427,1715922651441,-500.0,0.00012999,2]
[327248429,1715922651452,-600.38267454,0.00012999,2]
[327248431,1715922651461,-526.48309271,0.00012999,2]
[327248433,1715922651472,-645.96331682,0.00012999,2]
[327248435,1715922651481,-151.0,0.00012999,2]
[327248437,1715922651490,-151.0,0.00012999,2]
[327248439,1715922651500,-500.0,0.00012999,2]
[327248441,1715922651510,-500.0,0.00012999,2]
[327248443,1715922651519,-500.0,0.00012999,2]
[327248445,1715922651528,-500.0,0.00012999,2]
[327248447,1715922651538,-205.9521295,0.00012999,2]
[327248449,1715922651547,-492.43770824,0.00012999,2]
[327248451,1715922651557,-151.0,0.00012999,2]
[327248454,1715922651567,-151.0,0.00012999,2]
[327248456,1715922651577,-151.0,0.00012999,2]
[327248458,1715922651586,-151.0,0.00012999,2]
[327248460,1715922651595,-333.27917922,0.00012999,2]
[327248462,1715922651604,-151.0,0.00012999,2]
[327248464,1715922651614,-151.0,0.00012999,2]
[327248466,1715922651624,-151.0,0.00012999,2]
[327248468,1715922651635,-151.0,0.00012999,2]
[327248470,1715922651644,-151.0,0.00012999,2]
[327248472,1715922651654,-151.0,0.00012999,2]
[327248474,1715922651664,-500.0,0.00012999,2]
[327248476,1715922651673,-223.49030613,0.00012999,2]
[327248478,1715922651682,-249.84,0.00012999,2]
[327248480,1715922651692,-500.0,0.00012999,2]
[327248482,1715922651701,-500.0,0.00012999,2]
[327248484,1715922651710,-624.12310364,0.00012999,2]
[327248486,1715922651719,-500.0,0.00012999,2]
[327248488,1715922651728,-612.80988478,0.00012999,2]
[327248490,1715922651737,-151.0,0.00012999,2]
[327248492,1715922651747,-500.0,0.00012999,2]
[327248494,1715922651756,-500.0,0.00012999,2]
[327248496,1715922651765,-500.0,0.00012999,2]
[327248498,1715922651775,-500.0,0.00012999,2]
[327248500,1715922651785,-220.07966909,0.00012999,2]
[327248503,1715922651795,-500.0,0.00012999,2]
[327248504,1715922651804,-500.0,0.00012999,2]
[327248507,1715922651813,-500.0,0.00012999,2]
[327248508,1715922651822,-500.0,0.00012999,2]
[327248511,1715922651832,-500.0,0.00012999,2]
[327248512,1715922651841,-500.0,0.00012999,2]
[327248513,1715922651850,-500.0,0.00012999,2]
[327248514,1715922651859,-163.44276719,0.00012999,2]
[327248515,1715922651869,-500.0,0.00012999,2]
[327248516,1715922651878,-500.0,0.00012999,2]
[327248517,1715922651887,-500.0,0.00012999,2]
[327248518,1715922651896,-500.0,0.00012999,2]
[327248519,1715922651906,-500.0,0.00012999,2]
[327248520,1715922651915,-500.0,0.00012999,2]
[327248521,1715922651925,-320.38324198,0.00012999,2]
[327248522,1715922651935,-500.0,0.00012999,2]
[327248523,1715922651944,-500.0,0.00012999,2]
[327248524,1715922651954,-500.0,0.00012999,2]
[327248525,1715922651963,-500.0,0.00012999,2]
[327248526,1715922651973,-500.0,0.00012999,2]
[327248527,1715922651982,-411.53707648,0.00012999,2]
[327248528,1715922651992,-500.0,0.00012999,2]
[327248529,1715922652002,-500.0,0.00012999,2]
[327248530,1715922652011,-500.0,0.00012999,2]
[327248531,1715922652020,-500.0,0.00012999,2]
[327248532,1715922652030,-500.0,0.00012999,2]
[327248533,1715922652039,-500.0,0.00012999,2]
[327248534,1715922652049,-500.0,0.00012999,2]
[327248535,1715922652059,-500.0,0.00012999,2]
[327248536,1715922652068,-500.0,0.00012999,2]
[327248537,1715922652077,-500.0,0.00012999,2]
[327248538,1715922652086,-500.0,0.00012999,2]
[327248539,1715922652095,-500.0,0.00012999,2]
[327248540,1715922652104,-500.0,0.00012999,2]
[327248541,1715922652114,-500.0,0.00012999,2]
[327248542,1715922652123,-500.0,0.00012999,2]
[327248543,1715922652132,-500.0,0.00012999,2]
[327248544,1715922652141,-500.0,0.00012999,2]
[327248545,1715922652151,-500.0,0.00012999,2]
[327248546,1715922652160,-328.62629101,0.00012999,2]
[327248547,1715922652173,-151.0,0.00012999,2]
[327248548,1715922652182,-151.0,0.00012999,2]
[327248549,1715922652191,-500.0,0.00012999,2]
[327248550,1715922652200,-500.0,0.00012999,2]
[327248551,1715922652210,-500.0,0.00012999,2]
[327248552,1715922652219,-500.0,0.00012999,2]
[327248553,1715922652228,-500.0,0.00012999,2]
[327248554,1715922652238,-500.0,0.00012999,2]
[327248555,1715922652247,-482.6435446,0.00012999,2]
[327248556,1715922652256,-151.0,0.00012999,2]
[327248557,1715922652266,-151.0,0.00012999,2]
[327248558,1715922652275,-151.0,0.00012999,2]
[327248559,1715922652285,-151.0,0.00012999,2]
[327248560,1715922652295,-500.0,0.00012999,2]
[327248561,1715922652304,-500.0,0.00012999,2]
[327248562,1715922652313,-500.0,0.00012999,2]
[327248563,1715922652323,-215.44,0.00012999,2]
[327248564,1715922652333,-500.0,0.00012999,2]
[327248565,1715922652343,-500.0,0.00012999,2]
[327248566,1715922652352,-500.0,0.00012999,2]
[327248567,1715922652362,-500.0,0.00012999,2]
[327248568,1715922652371,-500.0,0.00012999,2]
[327248569,1715922652380,-500.0,0.00012999,2]
[327248570,1715922652389,-445.27,0.00012999,2]
[327248571,1715922652398,-500.0,0.00012999,2]
[327248572,1715922652407,-500.0,0.00012999,2]
[327248573,1715922652417,-500.0,0.00012999,2]
[327248574,1715922652427,-298.78,0.00012999,2]
[327248575,1715922652437,-151.0,0.00012999,2]
[327248576,1715922652447,-500.0,0.00012999,2]
[327248577,1715922652457,-500.0,0.00012999,2]
[327248578,1715922652467,-500.0,0.00012999,2]
[327248579,1715922652476,-500.0,0.00012999,2]
[327248580,1715922652485,-500.0,0.00012999,2]
[327248581,1715922652494,-500.0,0.00012999,2]
[327248582,1715922652504,-500.0,0.00012999,2]
[327248583,1715922652514,-481.97907673,0.00012999,2]
[327248584,1715922652524,-500.0,0.00012999,2]
[327248585,1715922652535,-500.0,0.00012999,2]
[327248586,1715922652546,-500.0,0.00012999,2]
[327248587,1715922652556,-500.0,0.00012999,2]
[327248588,1715922652566,-431.9189629,0.00012999,2]
[327248589,1715922652576,-233.06374223,0.00012999,2]
[327248590,1715922652585,-500.0,0.00012999,2]
[327248591,1715922652594,-500.0,0.00012999,2]
[327248592,1715922652603,-500.0,0.00012999,2]
[327248593,1715922652612,-500.0,0.00012999,2]
[327248594,1715922652621,-500.0,0.00012999,2]
[327248595,1715922652630,-500.0,0.00012999,2]
[327248596,1715922652639,-500.0,0.00012999,2]
[327248597,1715922652648,-500.0,0.00012999,2]
[327248598,1715922652658,-500.0,0.00012999,2]
[327248599,1715922652667,-500.0,0.00012999,2]
[327248600,1715922652678,-500.0,0.00012999,2]
[327248601,1715922652687,-500.0,0.00012999,2]
[327248602,1715922652697,-500.0,0.00012999,2]
[327248603,1715922652706,-500.0,0.00012999,2]
[327248604,1715922652715,-397.51402375,0.00012999,2]
[327248605,1715922652725,-500.0,0.00012999,2]
[327248606,1715922652734,-500.0,0.00012999,2]
[327248607,1715922652743,-500.0,0.00012999,2]
[327248608,1715922652752,-500.0,0.00012999,2]
[327248609,1715922652761,-500.0,0.00012999,2]
[327248610,1715922652770,-500.0,0.00012999,2]
[327248611,1715922652779,-500.0,0.00012999,2]
[327248612,1715922652789,-500.0,0.00012999,2]
[327248613,1715922652798,-500.0,0.00012999,2]
[327248614,1715922652807,-500.0,0.00012999,2]
[327248615,1715922652817,-500.0,0.00012999,2]
[327248616,1715922652829,-567.16,0.00012999,2]
[327248617,1715922652838,-500.0,0.00012999,2]
[327248618,1715922652849,-500.0,0.00012999,2]
[327248619,1715922652861,-445.46183832,0.00012999,2]
[327248620,1715922652871,-1090.299647,0.00012999,2]
[327248621,1715922652881,-1090.299647,0.00012999,2]
[327248622,1715922652891,-1090.299647,0.00012999,2]
[327248623,1715922652902,-1090.299647,0.00012999,2]
[327248624,1715922652914,-744.64,0.00012999,2]
[327248625,1715922652925,-744.64,0.00012999,2]
[327248626,1715922652935,-744.64,0.00012999,2]
[327248627,1715922652946,-744.64,0.00012999,2]
[327248628,1715922652957,-744.64,0.00012999,2]
[327248629,1715922652967,-744.64,0.00012999,2]
[327248630,1715922652978,-744.64,0.00012999,2]
[327248631,1715922652988,-744.64,0.00012999,2]
[327248632,1715922652998,-744.64,0.00012999,2]
[327248633,1715922653008,-744.64,0.00012999,2]
[327248634,1715922653018,-744.64,0.00012999,2]
[327248635,1715922653027,-744.64,0.00012999,2]
[327248636,1715922653036,-744.64,0.00012999,2]
[327248637,1715922653046,-744.64,0.00012999,2]
[327248638,1715922653055,-744.64,0.00012999,2]
[327248639,1715922653064,-744.64,0.00012999,2]
[327248640,1715922653073,-744.64,0.00012999,2]
[327248641,1715922653083,-744.64,0.00012999,2]
[327248642,1715922653092,-744.64,0.00012999,2]
[327248643,1715922653102,-744.64,0.00012999,2]
[327248644,1715922653112,-744.6859,0.00012999,2]
[327248645,1715922653121,-3212.46,0.00012999,2]
[327248646,1715922653131,-3212.46,0.00012999,2]
[327248647,1715922653141,-3212.46,0.00012999,2]
[327248648,1715922653151,-3212.46,0.00012999,2]
[327248649,1715922653160,-3212.46,0.00012999,2]
[327248650,1715922653175,-3212.46,0.00012999,2]
[327248651,1715922653185,-3212.46,0.00012999,2]
[327248652,1715922653194,-3212.46,0.00012999,2]
[327248653,1715922653203,-3212.46,0.00012999,2]
[327248654,1715922653214,-3212.46,0.00012999,2]
[327248655,1715922653224,-3212.46,0.00012999,2]
[327248656,1715922653233,-3212.46,0.00012999,2]
[327248657,1715922653242,-3212.46,0.00012999,2]
[327248658,1715922653254,-3212.46,0.00012999,2]
[327248659,1715922653264,-3212.46,0.00012999,2]
[327248660,1715922653274,-3212.46,0.00012999,2]
[327248661,1715922653284,-3212.46,0.00012999,2]
[327248662,1715922653293,-3212.46,0.00012999,2]
[327248663,1715922653303,-3212.46,0.00012999,2]
[327248664,1715922653314,-3212.46,0.00012999,2]
[327248665,1715922653324,-3212.69242458,0.00012999,2]
[327248666,1715922653335,-500.0,0.00012999,2]
[327248667,1715922653347,-373.80511927,0.00012999,2]
[327248668,1715922653357,-2315.29,0.00012999,2]
[327248669,1715922653366,-2315.29,0.00012999,2]
[327248670,1715922653375,-2315.29,0.00012999,2]
[327248671,1715922653385,-2315.29,0.00012999,2]
[327248672,1715922653394,-2315.29,0.00012999,2]
[327248673,1715922653403,-2315.29,0.00012999,2]
[327248674,1715922653413,-2315.29,0.00012999,2]
[327248675,1715922653423,-2315.29,0.00012999,2]
[327248676,1715922653432,-2315.29,0.00012999,2]
[327248677,1715922653441,-2315.29,0.00012999,2]
[327248678,1715922653450,-2315.29,0.00012999,2]
[327248679,1715922653497,-2315.29,0.00012999,2]
[327248680,1715922653506,-2315.29,0.00012999,2]
[327248681,1715922653515,-2315.29,0.00012999,2]
[327248682,1715922653524,-2315.29,0.00012999,2]
[327248683,1715922653533,-2315.29,0.00012999,2]
[327248684,1715922653542,-2315.29,0.00012999,2]
[327248685,1715922653551,-2315.29,0.00012999,2]
[327248686,1715922653560,-2315.29,0.00012999,2]
[327248687,1715922653569,-2315.29,0.00012999,2]
[327248688,1715922653578,-2315.45873325,0.00012999,2]
[327248689,1715922653588,-276.11327664,0.00012999,2]
[327248690,1715922653597,-151.0,0.00012999,2]
[327248691,1715922653606,-151.0,0.00012999,2]
[327248692,1715922653616,-631.58648047,0.00012999,2]
[327248693,1715922653625,-1463.23,0.00012999,2]
[327248694,1715922653634,-1463.23,0.00012999,2]
[327248695,1715922653643,-1463.23,0.00012999,2]
[327248696,1715922653652,-1463.23,0.00012999,2]
[327248697,1715922653662,-1463.23,0.00012999,2]
[327248698,1715922653671,-1463.23,0.00012999,2]
[327248699,1715922653681,-1463.23,0.00012999,2]
[327248700,1715922653690,-1463.23,0.00012999,2]
[327248701,1715922653699,-1463.23,0.00012999,2]
[327248702,1715922653708,-1463.23,0.00012999,2]
[327248703,1715922653720,-1463.23,0.00012999,2]
[327248704,1715922653730,-1463.23,0.00012999,2]
[327248705,1715922653740,-1463.23,0.00012999,2]
[327248706,1715922653750,-1463.23,0.00012999,2]
[327248707,1715922653759,-1463.23,0.00012999,2]
[327248708,1715922653768,-1463.23,0.00012999,2]
[327248709,1715922653778,-1463.23,0.00012999,2]
[327248710,1715922653787,-1463.23,0.00012999,2]
[327248711,1715922653797,-1463.23,0.00012999,2]
[327248712,1715922653808,-1463.23,0.00012999,2]
[327248713,1715922653819,-1463.28385302,0.00012999,2]
[327248714,1715922653828,-500.0,0.00012999,2]
[327248715,1715922653837,-421.86713806,0.00012999,2]
[327248716,1715922653846,-500.0,0.00012999,2]
[327248717,1715922653855,-500.0,0.00012999,2]
[327248718,1715922653864,-500.0,0.00012999,2]
[327248719,1715922653874,-500.0,0.00012999,2]
[327248720,1715922653883,-500.0,0.00012999,2]
[327248721,1715922653892,-500.0,0.00012999,2]
[327248722,1715922653901,-500.0,0.00012999,2]
[327248723,1715922653910,-500.0,0.00012999,2]
[327248724,1715922653919,-500.0,0.00012999,2]
[327248725,1715922653928,-500.0,0.00012999,2]
[327248726,1715922653938,-617.01938259,0.00012999,2]
[327248727,1715922653947,-500.0,0.00012999,2]
[327248728,1715922653955,-500.0,0.00012999,2]
[327248729,1715922653964,-600.0,0.00012999,2]
[327248730,1715922653973,-500.0,0.00012999,2]
[327248731,1715922653982,-354.45824787,0.00012999,2]
[327248732,1715922653992,-500.0,0.00012999,2]
[327248733,1715922654001,-500.0,0.00012999,2]
[327248734,1715922654011,-213.06375631,0.00012999,2]
[327248735,1715922654020,-151.0,0.00012999,2]
[327248736,1715922654029,-199.899572,0.00012999,2]
[327248737,1715922654038,-150.0,0.00012999,2]
[327248738,1715922654047,-1116.973,0.00012999,2]
[327248739,1715922654056,-544.0,0.00012999,2]
[327248740,1715922654066,-3668.657,0.00013,2]
[327248741,1715922654075,-418216.4609218,0.00013,2]
[327248742,1715922654084,-207506.4942512,0.00013,2]
[327248743,1715922654093,-1072916.0772061,0.00013,2]
[327248744,1715922654297,-342.46667533,0.00013,2]
[327248745,1715922654309,-303.00000001,0.00013,2]
[327248746,1715922654320,-630.0,0.00013,2]
[327248752,1715923531387,200.0,0.0002308,120]
[327248782,1715923832271,-778.0146266,9.836e-05,2]
[327248783,1715923832485,-679.61112275,9.837e-05,2]
[327248784,1715923832498,-1552.8314616,9.837e-05,2]
[327248785,1715923832510,-438.09741565,9.837e-05,2]
[327248786,1715923832519,-200.0,0.00011,2]
[327248787,1715923832529,-566.10829192,0.00011699,2]
[327248788,1715923832540,-2511.01170808,0.00011699,2]
[327248789,1715923832549,-573.34,0.00011703,2]
[327248791,1715923832559,-250.0,0.00011738,2]
[327248793,1715923832568,-543.52,0.00011744,2]
[327248795,1715923832578,-800.08,0.00011752,15]
[327248797,1715923832587,-150.0,0.00011761,2]
[327248799,1715923832596,-157.54,0.00011816,2]
[327248801,1715923832606,-810.56,0.00011873,2]
[327248803,1715923832615,-170.54,0.0001193,2]
[327248805,1715923832625,-177.92,0.00011957,2]
[327248807,1715923832634,-499.99,0.00011973,2]
[327248809,1715923832643,-687.50393,0.00012,2]
[327248811,1715923832652,-5000.0,0.00012,2]
[327248813,1715923832662,-19626.96507151,0.00012099,2]
[327248815,1715923832672,-2670.54,0.00012101,2]
[327248817,1715923832682,-227.48,0.00012192,2]
[327248819,1715923832691,-422.28,0.00012278,2]
[327248821,1715923832701,-150.0,0.00012278,2]
[327248823,1715923832711,-420.52,0.00012278,2]
[327248825,1715923832726,-523.76,0.00012278,2]
[327248827,1715923832736,-150.0,0.00012278,2]
[327248829,1715923832745,-523.76,0.00012278,2]
[327248831,1715923832755,-420.52,0.00012278,2]
[327248833,1715923832766,-150.0,0.00012278,2]
[327248835,1715923832776,-351.16,0.00012278,2]
[327248837,1715923832786,-150.0,0.00012278,2]
[327248840,1715923832796,-198.1,0.000124,2]
[327248842,1715923832806,-10934.65564137,0.00012449,2]
[327248843,1715923832815,-3729.882,0.0001245,2]
[327248846,1715923832825,-3670.522,0.00012474,2]
[327248848,1715923832834,-3721.298,0.00012576,2]
[327248849,1715923832843,-300.0,0.00012578,2]
[327248850,1715923832853,-523.61,0.00012578,2]
[327248852,1715923832862,-351.62,0.00012578,2]
[327248854,1715923832871,-326.03,0.00012578,2]
[327248856,1715923832880,-150.0,0.00012578,2]
[327248858,1715923832890,-351.62,0.00012578,2]
[327248860,1715923832899,-351.62,0.00012578,2]
[327248862,1715923832908,-351.62,0.00012578,2]
[327248864,1715923832917,-1738.4,0.000126,2]
[327248866,1715923832927,-1015.48183608,0.00012639,2]
[327248868,1715923832936,-10261.3431,0.00012668,2]
[327248869,1715923832945,-3689.647,0.00012682,2]
[327248871,1715923832954,-150.0,0.00012727,2]
[327248873,1715923832963,-150.0,0.00012727,2]
[327248875,1715923832973,-150.0,0.0001273,2]
[327248877,1715923832983,-150.0,0.00012732,2]
[327248879,1715923832992,-150.0,0.00012735,2]
[327248881,1715923833002,-150.0,0.00012736,2]
[327248883,1715923833011,-150.0,0.00012736,2]
[327248885,1715923833020,-150.0,0.00012739,2]
[327248887,1715923833030,-1146.09816916,0.0001274,2]
[327248889,1715923833039,-150.0,0.0001274,2]
[327248891,1715923833048,-150.0,0.00012742,2]
[327248893,1715923833057,-150.0,0.00012744,2]
[327248895,1715923833066,-12651.55997179,0.0001275,2]
[327248897,1715923833074,-500.0,0.00012753,2]
[327248899,1715923833084,-150.0,0.00012756,2]
[327248901,1715923833093,-150.0,0.00012757,2]
[327248903,1715923833102,-150.0,0.00012758,2]
[327248905,1715923833111,-500.0,0.00012761,2]
[327248906,1715923833120,-150.0,0.00012769,2]
[327248908,1715923833130,-500.0,0.0001277,2]
[327248910,1715923833140,-150.0,0.00012772,2]
[327248912,1715923833150,-150.0,0.00012775,2]
[327248914,1715923833158,-150.0,0.00012775,2]
[327248916,1715923833167,-150.0,0.00012777,2]
[327248918,1715923833177,-150.0,0.00012778,2]
[327248920,1715923833186,-500.0,0.00012779,2]
[327248922,1715923833195,-150.0,0.00012781,2]
[327248924,1715923833206,-150.0,0.00012781,2]
[327248926,1715923833215,-150.0,0.00012782,2]
[327248928,1715923833224,-150.0,0.00012783,2]
[327248930,1715923833233,-150.0,0.00012785,2]
[327248932,1715923833243,-150.0,0.00012785,2]
[327248934,1715923833252,-150.0,0.00012787,2]
[327248935,1715923833262,-500.0,0.00012788,2]
[327248936,1715923833272,-150.0,0.0001279,2]
[327248937,1715923833281,-150.0,0.00012796,2]
[327248938,1715923833290,-150.0,0.00012796,2]
[327248939,1715923833299,-150.0,0.00012796,2]
[327248940,1715923833308,-500.0,0.00012797,2]
[327248941,1715923833318,-150.0,0.000128,2]
[327248942,1715923833327,-150.0,0.00012803,2]
[327248943,1715923833337,-150.0,0.00012805,2]
[327248944,1715923833346,-150.0,0.00012805,2]
[327248945,1715923833356,-500.0,0.00012805,2]
[327248946,1715923833366,-1500.0,0.00012806,2]
[327248947,1715923833375,-150.0,0.00012812,2]
[327248948,1715923833385,-500.0,0.00012814,2]
[327248949,1715923833395,-150.0,0.00012819,2]
[327248950,1715923833404,-2674.9289,0.0001282,2]
[327248951,1715923833414,-500.0,0.00012823,2]
[327248952,1715923833424,-150.0,0.00012823,2]
[327248953,1715923833436,-150.0,0.00012826,2]
[327248954,1715923833445,-150.0,0.00012829,2]
[327248955,1715923833455,-150.0,0.0001283,2]
[327248956,1715923833464,-150.0,0.00012831,2]
[327248957,1715923833473,-500.0,0.00012832,2]
[327248958,1715923833482,-150.0,0.00012833,2]
[327248959,1715923833491,-150.0,0.00012834,2]
[327248960,1715923833500,-150.0,0.00012836,2]
[327248961,1715923833509,-150.0,0.0001284,2]
[327248962,1715923833520,-500.0,0.00012841,2]
[327248963,1715923833531,-150.0,0.00012843,2]
[327248964,1715923833540,-150.0,0.00012844,2]
[327248965,1715923833551,-150.0,0.00012844,2]
[327248966,1715923833561,-500.0,0.00012846,2]
[327248967,1715923833571,-150.0,0.00012848,2]
[327248968,1715923833581,-150.0,0.00012849,2]
[327248969,1715923833590,-500.0,0.00012849,2]
[327248970,1715923833600,-150.0,0.0001285,2]
[327248971,1715923833609,-300.0,0.00012851,2]
[327248972,1715923833619,-500.0,0.00012858,2]
[327248973,1715923833629,-150.0,0.00012861,2]
[327248974,1715923833639,-150.0,0.00012864,2]
[327248975,1715923833651,-150.0,0.00012864,2]
[327248976,1715923833662,-150.0,0.00012866,2]
[327248977,1715923833671,-500.0,0.00012867,2]
[327248978,1715923833682,-150.0,0.00012867,2]
[327248979,1715923833691,-386.37390304,0.00012868,2]
[327248980,1715923833700,-4895.0,0.00012868,2]
[327248981,1715923833710,-209.47895957,0.00012869,2]
[327248982,1715923833728,-150.0,0.00012869,2]
[327248983,1715923833738,-2124.14561,0.0001287,2]
[327248984,1715923833748,-150.0,0.00012873,2]
[327248985,1715923833759,-150.0,0.00012874,2]
[327248986,1715923833768,-500.0,0.00012876,2]
[327248987,1715923833778,-150.0,0.00012882,2]
[327248988,1715923833788,-150.0,0.00012882,2]
[327248989,1715923833799,-150.0,0.00012884,2]
[327248990,1715923833809,-500.0,0.00012885,2]
[327248991,1715923833819,-150.0,0.00012885,2]
[327248992,1715923833828,-150.0,0.00012887,2]
[327248993,1715923833838,-150.0,0.00012887,2]
[327248994,1715923833848,-150.0,0.00012891,2]
[327248995,1715923833857,-500.0,0.00012893,2]
[327248996,1715923833867,-150.0,0.00012894,2]
[327248997,1715923833876,-500.0,0.00012896,2]
[327248998,1715923833886,-508.77608487,0.00012896,2]
[327248999,1715923833896,-512.7116029,0.00012896,2]
[327249000,1715923833906,-500.0,0.00012896,2]
[327249001,1715923833915,-7500.0,0.00012899,2]
[327249002,1715923833925,-8930.9458,0.000129,2]
[327249003,1715923833935,-1353.77891383,0.000129,2]
[327249004,1715923833945,-150.0,0.00012901,2]
[327249005,1715923833955,-500.0,0.00012902,2]
[327249006,1715923833965,-150.0,0.00012904,2]
[327249007,1715923833974,-150.0,0.00012905,2]
[327249008,1715923833984,-150.0,0.00012906,2]
[327249009,1715923833994,-150.0,0.00012909,2]
[327249010,1715923834004,-150.0,0.00012909,2]
[327249011,1715923834013,-500.0,0.00012911,2]
[327249012,1715923834023,-150.0,0.00012914,2]
[327249013,1715923834033,-150.0,0.00012915,2]
[327249014,1715923834043,-500.0,0.0001292,2]
[327249015,1715923834053,-1500.0,0.00012922,2]
[327249016,1715923834063,-150.0,0.00012928,2]
[327249017,1715923834072,-500.0,0.00012929,2]
[327249018,1715923834082,-150.0,0.00012932,2]
[327249019,1715923834092,-150.0,0.00012935,2]
[327249020,1715923834101,-150.0,0.00012936,2]
[327249021,1715923834111,-500.0,0.00012937,2]
[327249022,1715923834120,-150.0,0.00012939,2]
[327249023,1715923834130,-150.0,0.00012942,2]
[327249024,1715923834139,-1500.0,0.00012944,2]
[327249025,1715923834148,-150.0,0.00012945,2]
[327249026,1715923834157,-150.0,0.00012946,2]